[Event "FIDE WSTC Open 50 2025"]
[Site "Prague"]
[Date "2025.02.20"]
[Round "4.8"]
[White "Min, Valeriy"]
[Black "Arnason, Jon L"]
[Result "0-1"]
[Annotator "TA"]
[ECO "A09"]
[WhiteElo "2273"]
[BlackElo "2405"]
[PlyCount "74"]
[EventDate "2025.02.17"]
[EventType "team-tourn"]
[EventCountry "CZE"]
[SourceTitle "playchess.com"]
[Source "ChessBase"]
[SourceQuality "1"]
[TimeControl "40/5400+30:1800+30"]

{[%evp 20,74,3,4,14,-25,-10,-11,-9,-12,-10,-27,-6,-10,-15,-11,-10,-27,-12,-13,0,0,5,0,1,-4,-12,-15,-21,-14,-10,-10,-10,-13,-2,-63,-45,-47,-41,-231,-234,-278,-234,-278,-259,-534,-528,-527,-534,-1728,-1721,-4133,-2160,-1351,-1366,-2135,-1784]} 1. Nf3 {[%emt 0:00:05]} d5 {[%emt 0:00:19]} 2. c4 {[%emt 0:01:18]} dxc4 {[%emt 0:01:14]} 3. Qa4+ {[%emt 0:01:39]} Nd7 {[%emt 0:02:02]} 4. Qxc4 {[%emt 0:00:10]} Ngf6 {[%emt 0:01:25]} 5. g3 {[%emt 0:00:35]} e6 {[%emt 0:08:59]} 6. Bg2 {[%emt 0:00:34]} c5 {[%emt 0:01:23]} 7. O-O {[%emt 0:01:12]} a6 {[%emt 0:01:10]} 8. a4 {[%emt 0:00:34]} b5 {[%emt 0:01:55]} 9. Qc2 {[%emt 0:00:44]} Bb7 {[%emt 0:00:46]} 10. d3 {[%emt 0:05:45]} Be7 {[%emt 0:01:26]} 11. Nc3 {[%emt 0:17:06]} Bc6 {[%emt 0:12:33] A13: English Opening: 1...e6.} 12. Nd2 {[%emt 0:04:08]} Bxg2 {[%emt 0:02:01]} 13. Kxg2 {[%emt 0:02:58]} O-O {[%emt 0:01:44] The position is equal.} 14. Nf3 {[%emt 0:01:18]} Qb6 {[%emt 0:02:47]} 15. Qb3 $146 {[%emt 0:05:22][%cal Ra4b5]} ({Predecessor:} 15. axb5 axb5 16. Rxa8 Rxa8 17. Qb3 Ra5 18. Bd2 h6 19. Rc1 Kf8 20. Nb1 Ra8 21. Nc3 Ra5 22. Nb1 Ra8 23. Nc3 Ra5 {½-½ Laznicka,V (2658)-Vallejo Pons,F (2687) GRE-chT 47th 2019 (4.3)}) 15... Rab8 {[%emt 0:02:23][%cal Oc5c4]} 16. Bf4 {[%emt 0:06:01]} Rb7 {[%emt 0:00:12]} 17. axb5 {[%emt 0:00:15]} axb5 {[%emt 0:00:10]} 18. e4 {[%emt 0:00:22]} Qc6 {[%emt 0:07:56]} 19. Rfc1 {[%emt 0:03:55]} Rc8 {[%emt 0:02:19]} 20. Qd1 {[%emt 0:05:44][%cal Ob2b4]} h6 {[%emt 0:02:44]} 21. h4 {[%emt 0:02:50][%cal Ob2b4]} Rb6 {[%emt 0:05:03]} 22. Ra7 {[%emt 0:09:52][%cal Of3d4]} Ra6 {[%emt 0:11:42]} 23. Ra1 {[%emt 0:01:38]} Rxa7 {[%emt 0:02:57]} 24. Rxa7 {[%emt 0:00:15]} Bd8 {[%emt 0:03:15]} 25. Qb3 {[%emt 0:05:31]} Bb6 {[%emt 0:03:23]} 26. Ra6 {[%emt 0:03:05]} c4 {[%emt 0:03:33]} 27. Qxb5 {[%emt 0:00:37]} (27. dxc4 $1 $11 bxc4 28. Qa4 Qxa4 29. Nxa4) 27... Qxb5 $15 {[%emt 0:00:14]} 28. Nxb5 {[%emt 0:00:24] [#] and Nd6 should not be overlooked} cxd3 {[%emt 0:00:16][%cal Oc8c2]} 29. Nd6 $2 {[%emt 0:00:43] Loses the game.} (29. Nc3 $15) 29... Rc2 $1 $19 {[%emt 0:00:53][%csl LRb2,LRf2]} 30. Bd2 {[%emt 0:02:41][%cal Oh4h5]} g5 {[%emt 0:03:21]} (30... Rxb2 31. Ra3 $17) 31. hxg5 {[%emt 0:04:56]} hxg5 {[%emt 0:00:06]} 32. Be1 $2 {[%emt 0:00:52] [#]} (32. g4 {keeps fighting.}) 32... Bxf2 $1 {[%emt 0:03:11][%mdl 512] Black is clearly winning.} 33. Bxf2 {[%emt 0:01:02]} Ng4 {[%emt 0:00:05]} 34. Nxg5 {[%emt 0:02:24]} Rxf2+ {[%emt 0:01:02]} 35. Kg1 {[%emt 0:00:19]} d2 {[%emt 0:01:18][%cal Rd2d1]} 36. Ra1 {[%emt 0:01:16]} Nde5 {[%emt 0:00:47] White must now prevent ...Kg7.} 37. b3 {[%emt 0:01:58]} f6 {[%emt 0:04:03] Weighted Error Value: White=0.89/Black=0.03 (flawless)   Loses game:     	White=1     	---        Mistake:       	White=2     	---        Inaccurate:     	White=3     	---        OK:         	White=6     	Black=11     Best:        	---       	Black=3      Brilliant:      	---       	Black=1} 0-1

[Event "FIDE WSTC Open 50 2025"]
[Site "Prague"]
[Date "2025.02.20"]
[Round "4.9"]
[White "Ftacnik, Lubomir"]
[Black "Ehlvest, Jaan"]
[Result "1/2-1/2"]
[Annotator "TA"]
[ECO "E94"]
[WhiteElo "2438"]
[BlackElo "2531"]
[PlyCount "56"]
[EventDate "2025.02.17"]
[EventType "team-tourn"]
[EventCountry "CZE"]
[SourceTitle "playchess.com"]
[Source "ChessBase"]
[SourceQuality "1"]
[TimeControl "40/5400+30:1800+30"]

{[%evp 15,56,35,51,33,45,24,44,41,45,38,45,52,46,18,47,5,12,0,0,0,0,0,0,0,0,16,22,14,14,-15,-15,-15,-15,-15,-15,-15,-15,-20,-20,-21,-14,-14,-7]} 1. Nf3 {[%emt 0:00:04]} Nf6 {[%emt 0:02:02]} 2. c4 {[%emt 0:00:23]} g6 {[%emt 0:00:05]} 3. Nc3 {[%emt 0:00:27]} Bg7 {[%emt 0:00:07]} 4. e4 {[%emt 0:00:45]} d6 {[%emt 0:00:08]} 5. d4 {[%emt 0:00:07]} O-O {[%emt 0:00:05]} 6. Be2 {[%emt 0:00:13]} e5 {[%emt 0:00:04]} 7. O-O {[%emt 0:00:29]} Bg4 {[%emt 0:00:07]} 8. d5 {[%emt 0:07:00]} a5 {[%emt 0:00:24]} 9. Be3 {[%emt 0:02:47] E94: King's Indian: Classical: 6 Be2 e5 7 0-0: Various Black 7th moves.} Na6 {[%emt 0:00:13]} 10. Ne1 {[%emt 0:10:51]} Bd7 {[%emt 0:02:05]} 11. Nd3 {[%emt 0:01:15] White is slightly better.} b6 {[%emt 0:03:23]} 12. Qd2 {[%emt 0:16:39]} Nc5 {[%emt 0:13:41]} 13. Nxc5 $146 {[%emt 0:04:49]} (13. f3 Nh5 14. g3 Nxd3 15. Qxd3 Kh8 16. Qd2 Qe7 17. Nb5 Bh3 18. Rf2 Rae8 19. g4 {1-0 Al Hosani,O (2197)-Kueng,N (2005) Biel HTO 54th 2021 (6)}) 13... bxc5 {[%emt 0:00:07]} 14. Bh6 {[%emt 0:02:45]} a4 {[%emt 0:11:07]} 15. Bxg7 {[%emt 0:03:43]} Kxg7 {[%emt 0:00:08] The position is equal.} 16. f4 {[%emt 0:04:05]} exf4 {[%emt 0:26:59]} 17. Rxf4 {[%emt 0:00:21]} Qe7 {[%emt 0:00:21]} 18. Raf1 {[%emt 0:01:28]} Ng8 {[%emt 0:02:45]} 19. Bg4 {[%emt 0:10:34]} Bxg4 {[%emt 0:05:23]} 20. Rxg4 {[%emt 0:00:39]} Nf6 {[%emt 0:00:16][%cal Bg8f6,Bf6d7,Bd7e5][%mdl 32]} 21. Rgf4 {[%emt 0:04:05]} Nd7 {[%emt 0:00:41]} 22. Nb5 {[%emt 0:00:54]} Ne5 {[%emt 0:01:52]} 23. Qc3 {[%emt 0:00:24]} Kg8 {[%emt 0:00:43]} 24. h3 {[%emt 0:02:51]} Qd7 {[%emt 0:03:04]} 25. R4f2 {[%emt 0:03:11]} Rfe8 {[%emt 0:01:45]} 26. Kh2 {[%emt 0:03:56]} Re7 {[%emt 0:04:09]} 27. Kg1 {[%emt 0:02:40]} h5 {[%emt 0:01:57]} 28. Kh1 {[%emt 0:02:04]} Kh7 {[%emt 0:06:01] Weighted Error Value: White=0.08 (flawless) /Black=0.04 (flawless)   Inaccurate:     	White=3     	Black=1      OK:         	White=6     	Black=9      Best:        	---       	Black=1} 1/2-1/2

[Event "FIDE WSTC Open 50 2025"]
[Site "Prague"]
[Date "2025.02.20"]
[Round "4.10"]
[White "Kaidanov, Gregory"]
[Black "Mrva, Martin"]
[Result "1-0"]
[Annotator "TA"]
[ECO "C50"]
[WhiteElo "2513"]
[BlackElo "2394"]
[PlyCount "124"]
[EventDate "2025.02.17"]
[EventType "team-tourn"]
[EventCountry "CZE"]
[SourceTitle "playchess.com"]
[Source "ChessBase"]
[SourceQuality "1"]
[TimeControl "40/5400+30:1800+30"]

{[%evp 12,124,31,20,14,11,27,29,32,34,38,24,36,0,104,107,130,58,66,71,108,43,79,-42,-43,-45,-41,-26,-20,-32,-27,-27,-37,-38,-43,-50,0,0,90,76,75,0,0,0,30,0,37,46,64,51,91,35,23,28,89,87,110,105,121,106,106,111,154,162,173,176,172,173,172,183,275,278,288,281,288,284,275,283,306,325,362,339,360,355,362,339,466,456,463,420,682,712,916,907,851,816,1095,1111,1374,1148,1308,1003,1933,1699,1450,1300,2495,1722,2617,2454,1929,1956,4910,1226,883]} 1. e4 {[%emt 0:00:05]} e5 {[%emt 0:00:22]} 2. Nf3 {[%emt 0:00:06]} Nc6 {[%emt 0:00:08]} 3. Bc4 {[%emt 0:00:05]} Nf6 {[%emt 0:00:38]} 4. d3 {[%emt 0:00:39]} Bc5 {[%emt 0:00:33]} 5. c3 {[%emt 0:00:53]} d6 {[%emt 0:00:48]} 6. Bg5 {[%emt 0:01:17]} h6 {[%emt 0:01:22]} 7. Bh4 {[%emt 0:00:06]} a5 {[%emt 0:03:57] C54: Giuoco Piano: 4 c3 Nf6, main lines with 5 d4 and 5 d3.} 8. Nbd2 {[%emt 0:01:32]} Qe7 {[%emt 0:15:20]} 9. O-O {[%emt 0:01:31]} Ba7 {[%emt 0:12:37] White has an edge.} 10. Re1 {[%emt 0:02:10]} g5 {[%emt 0:13:35]} 11. Bg3 {[%emt 0:00:06][%cal Od3d4]} Nh7 {[%emt 0:00:12]} 12. d4 {[%emt 0:02:10]} Nf8 $146 {[%emt 0:18:15]} (12... h5 $1 $11) ({Predecessor:} 12... h5 13. h4 g4 14. Nh2 Nf8 15. Nhf1 Ng6 16. Ne3 O-O 17. Nd5 Qd8 18. Nf1 exd4 19. cxd4 Bxd4 {0-1 Korchmar,V (2431)-Pichot,A (2647) Titled Tuesday intern op 23rd Jul Early blitz 2024 (2)}) 13. Bb5 {[%emt 0:01:45]} Ng6 {[%emt 0:02:20]} 14. d5 {[%emt 0:01:23] White is more active.} (14. Nc4 $16) 14... Bd7 $1 $14 {[%emt 0:00:17]} 15. dxc6 {[%emt 0:04:17]} bxc6 {[%emt 0:00:15]} 16. Ba4 {[%emt 0:04:34]} (16. Bd3 $1 $16) 16... g4 {[%emt 0:03:11] [#]} 17. Nc4 {[%emt 0:06:12]} gxf3 $15 {[%emt 0:05:02]} 18. Qxf3 {[%emt 0:00:21]} h5 $1 {[%emt 0:00:07] Hoping for ...h4.} 19. h3 $1 {[%emt 0:01:18][%cal Og1h1]} Nh4 {[%emt 0:14:32]} 20. Bxh4 {[%emt 0:04:22]} Qxh4 {[%emt 0:00:06]} 21. Ne3 {[%emt 0:00:55] Inhibits Bg4.} Rb8 {[%emt 0:05:33]} 22. Rab1 {[%emt 0:07:57]} Rg8 {[%emt 0:00:05]} 23. Kf1 {[%emt 0:01:57]} Rg6 {[%emt 0:00:19]} (23... Bxe3 $15 24. Qxe3 Rg6) 24. Nf5 $11 {[%emt 0:01:50]} Qf4 {[%emt 0:00:55]} (24... Qf6 $11 {remains equal.}) 25. Qxf4 $16 {[%emt 0:01:18]} exf4 {[%emt 0:00:02]} 26. Nh4 {[%emt 0:00:58]} (26. Bd1 $16) 26... Rg5 $1 $11 {[%emt 0:01:11]} 27. Nf3 {[%emt 0:05:50]} Rg7 {[%emt 0:00:01]} 28. Nh4 {[%emt 0:03:06]} Kf8 {[%emt 0:00:18]} 29. b3 {[%emt 0:02:45]} Re8 {[%emt 0:00:27]} 30. Rbd1 {[%emt 0:00:50][%cal Bb1d1,Bd1d3,Bd3f3,Bf3f4][%mdl 32]} Re5 {[%emt 0:01:00]} 31. Nf3 {[%emt 0:00:35]} ({Better is} 31. Rd3 $16) 31... Re6 $14 {[%emt 0:00:31]} 32. Rd3 {[%emt 0:02:22]} Reg6 {[%emt 0:01:23]} (32... Bc5 $11) 33. Nh4 $16 {[%emt 0:00:10] White leaves nothing to chance now.} Rg5 {[%emt 0:00:07]} 34. Rf3 {[%emt 0:01:31]} Rc5 {[%emt 0:00:40]} 35. Rd1 {[%emt 0:02:15]} ({Don't play} 35. Rxf4 $6 Rxc3 36. Rf3 Rc5 $11) 35... Ke7 {[%emt 0:00:33][%cal Bf8e7,Be7f6,Bf6g5,Bg5f4,Bf4e5][%mdl 32]} 36. Rdd3 {[%emt 0:01:42][%cal Bd1d3,Bd3f3,Bf3c3][%mdl 32]} (36. Rxf4 Rxc3 37. Nf5+ Bxf5 38. Rxf5 Rc2 $11) 36... Kf6 {[%emt 0:01:08]} 37. Rxf4+ {[%emt 0:02:47]} Kg5 {[%emt 0:00:02]} 38. Rdf3 {[%emt 0:01:37]} Rxc3 {[%emt 0:00:16]} 39. Rxc3 {[%emt 0:01:54]} Kxf4 {[%emt 0:00:01]} 40. Bxc6 {[%emt 0:00:28]} Be6 {[%emt 0:01:04]} (40... Bxc6 $142 41. Rxc6 Kxe4 42. Rc4+ (42. Rxc7 Bc5 $18) 42... Kd3) 41. Nf3 $18 {[%emt 0:35:21]} h4 {[%emt 0:06:26]} 42. Nxh4 {[%emt 0:00:00]} Ke5 {[%emt 0:01:38]} 43. Nf3+ {[%emt 0:00:00]} Kf6 {[%emt 0:00:05]} 44. Bd5 {[%emt 0:00:00]} Bc5 {[%emt 0:04:08]} 45. Bxe6 {[%emt 0:00:00]} fxe6 {[%emt 0:00:05][%mdl 4096] Endgame KRB-KRN. White is two pawns up.} 46. g4 {[%emt 0:00:00]} a4 {[%emt 0:01:33]} 47. e5+ {[%emt 0:00:00]} Kg6 {[%emt 0:00:08]} 48. Rc4 {[%emt 0:00:00]} ({Much less strong is} 48. bxa4 Rf7 49. exd6 Bxd6) 48... a3 {[%emt 0:00:17]} 49. b4 {[%emt 0:00:00]} Bb6 {[%emt 0:00:36]} 50. Rc6 {[%emt 0:00:00]} Rf7 {[%emt 0:01:27]} (50... dxe5 $142 51. Rxe6+ Kf7 52. Rxe5 Rg6 53. Ng5+ Kg8) 51. Kg2 {[%emt 0:00:00] White is clearly winning.} d5 {[%emt 0:00:48]} 52. Rxe6+ {[%emt 0:00:00]} Kg7 {[%emt 0:00:04]} 53. g5 {[%emt 0:00:00]} Rf4 {[%emt 0:00:18]} 54. h4 {[%emt 0:00:00][%cal Bh3h4,Bh4h5,Bh5h6][%mdl 32]} Rxb4 {[%emt 0:00:27]} 55. h5 {[%emt 0:00:00]} Bc5 {[%emt 0:04:53]} 56. Rc6 {[%emt 0:00:00]} Bb6 {[%emt 0:00:28]} 57. h6+ {[%emt 0:00:00]} Kh7 {[%emt 0:05:20]} 58. Rf6 {[%emt 0:00:00] Threatens to win with Rf7+.} Bc5 {[%emt 0:02:55]} 59. Rf7+ {[%emt 0:00:00]} Kg8 {[%emt 0:01:53]} 60. Rg7+ {[%emt 0:00:00]} Kh8 {[%emt 0:00:45]} 61. Rxc7 {[%emt 0:00:00]} Bf8 {[%emt 0:00:19]} 62. Rc8 {[%emt 0:00:00]} Kg8 {[%emt 0:00:11] Weighted Error Value: White=0.11 (very precise) /Black=0.63  Mistake:       	White=5     	Black=6      Inaccurate:     	White=2     	Black=6      OK:         	White=23    	Black=10     Best:        	White=4     	Black=3      Strong:       	White=1     	Black=3} 1-0

[Event "FIDE WSTC Open 50 2025"]
[Site "Prague"]
[Date "2025.02.20"]
[Round "4.11"]
[White "Stohl, Igor"]
[Black "Shabalov, Alexander"]
[Result "1/2-1/2"]
[Annotator "TA"]
[ECO "D76"]
[WhiteElo "2409"]
[BlackElo "2471"]
[PlyCount "58"]
[EventDate "2025.02.17"]
[EventType "team-tourn"]
[EventCountry "CZE"]
[SourceTitle "playchess.com"]
[Source "ChessBase"]
[SourceQuality "1"]
[TimeControl "40/5400+30:1800+30"]

{[%evp 18,58,25,36,38,47,27,-19,-10,-18,0,0,0,0,0,-11,-6,-31,-7,0,0,-6,0,-6,-1,-2,0,0,0,-4,6,0,0,-8,0,0,0,0,0,0,0,3,0]} 1. Nf3 {[%emt 0:00:18]} Nf6 {[%emt 0:00:50]} 2. c4 {[%emt 0:01:11]} g6 {[%emt 0:01:21]} 3. g3 {[%emt 0:01:46]} Bg7 {[%emt 0:00:11]} 4. Bg2 {[%emt 0:00:08]} O-O {[%emt 0:00:07]} 5. O-O {[%emt 0:00:51]} d5 6. cxd5 {[%emt 0:01:01]} Nxd5 {[%emt 0:02:04]} 7. d4 {[%emt 0:00:21]} Nb6 {[%emt 0:00:06]} 8. Nc3 {[%emt 0:00:33]} Nc6 {[%emt 0:00:12]} 9. e3 {[%emt 0:01:21]} a5 {[%emt 0:00:07]} 10. d5 {[%emt 0:21:01] 10.Qe2 is becoming the main line.} Nb4 {[%emt 0:01:31] D76: Fianchetto Grünfeld: Main Line with 7...Nb6.} 11. e4 {[%emt 0:01:15]} f5 {[%emt 0:00:06]} 12. Nh4 $146 {[%emt 0:16:43]} (12. Ng5 $142) (12. Ng5 h6 13. Ne6 Bxe6 14. dxe6 Qxd1 15. Rxd1 c6 16. exf5 gxf5 17. Bf1 Rf6 18. Be3 {0-1 Vignesh,N (2467)-Salem,A (2679) Abu Dhabi op 28th 2022 (2)}) 12... fxe4 $11 {[%emt 0:14:56]} 13. Bxe4 {[%emt 0:01:32]} Bh3 {[%emt 0:08:40]} 14. Re1 {[%emt 0:01:32]} c6 {[%emt 0:09:12]} 15. dxc6 {[%emt 0:03:47]} Qxd1 {[%emt 0:00:19]} 16. Rxd1 {[%emt 0:01:29]} bxc6 {[%emt 0:00:39]} 17. Bg5 {[%emt 0:18:04]} e6 {[%emt 0:03:04]} 18. Rac1 {[%emt 0:01:49] The position is equal.} N6d5 {[%emt 0:08:37] [#] aiming for ...Nxc3.} 19. Na4 {[%emt 0:04:39]} Nxa2 {[%emt 0:09:31]} 20. Rxc6 {[%emt 0:00:32]} Nab4 {[%emt 0:00:27]} 21. Rcc1 {[%emt 0:04:20]} Rab8 {[%emt 0:08:55]} 22. Bg2 {[%emt 0:02:47]} Bxg2 {[%emt 0:06:14]} 23. Nxg2 {[%emt 0:00:13]} Rbc8 {[%emt 0:02:45]} 24. Rxc8 {[%emt 0:02:36]} Rxc8 {[%emt 0:00:02]} 25. Rc1 {[%emt 0:00:10]} Rxc1+ {[%emt 0:07:11]} 26. Bxc1 {[%emt 0:00:03]} Nd3 {[%emt 0:00:14]} 27. Bd2 {[%emt 0:00:34]} N5b4 {[%emt 0:00:16]} 28. b3 {[%emt 0:03:30]} Nc6 {[%emt 0:06:08]} 29. Ne1 Nxe1 {Weighted Error Value: White=0.06 (flawless) /Black=0.04 (flawless)   Mistake:       	White=1     	---        OK:         	White=10    	Black=10     Best:        	---       	Black=1} 1/2-1/2

[Event "FIDE WSTC Open 50 2025"]
[Site "Prague"]
[Date "2025.02.20"]
[Round "4.12"]
[White "Rachels, Stuart"]
[Black "Lipka, Juraj"]
[Result "1-0"]
[Annotator "TA"]
[ECO "C09"]
[WhiteElo "2466"]
[BlackElo "2348"]
[PlyCount "139"]
[EventDate "2025.02.17"]
[EventType "team-tourn"]
[EventCountry "CZE"]
[SourceTitle "playchess.com"]
[Source "ChessBase"]
[SourceQuality "1"]
[TimeControl "40/5400+30:1800+30"]

{[%evp 12,139,27,31,29,32,30,26,36,33,28,20,35,16,15,7,11,8,11,11,21,0,18,0,6,8,13,-12,-18,-124,-118,-127,-128,-122,-126,-121,-118,-135,-120,-142,-147,-199,-213,-226,-185,-200,-139,-125,-128,-135,-133,-154,-144,-186,-133,-119,-113,-114,-124,-191,-136,-156,-141,-158,-133,-148,-103,-95,-99,-101,-107,-166,-188,-175,-149,-161,-112,-155,-93,-92,-74,-77,-87,-75,-45,-86,-22,-40,-8,-35,-19,-27,-19,-406,-159,-402,-406,-406,-406,-406,-406,-406,-406,-406,-319,-4614,-4610,-29951,-29952,-29949,-29950,-29952,-29951,-29952,-29949,-4710,-1677,-29957,-29958,-29949,-29946,-6170,-6095,-1943,-1702,-29977,-29978,-29978,-29977,-29979]} 1. e4 {[%emt 0:00:03]} e6 {[%emt 0:00:04]} 2. d4 {[%emt 0:00:07]} d5 {[%emt 0:00:06]} 3. Nd2 {[%emt 0:00:08]} c5 {[%emt 0:00:09]} 4. exd5 {[%emt 0:00:13]} exd5 {[%emt 0:00:08]} 5. Ngf3 {[%emt 0:00:21]} Nc6 {[%emt 0:01:11]} 6. Bb5 {[%emt 0:00:16]} Qe7+ {[%emt 0:00:19]} 7. Be2 {[%emt 0:00:21]} Qc7 {[%emt 0:00:57] C09: French Tarrasch: 3...c5 4 exd5 exd5 5 Ngf3 Nc6.} 8. O-O {[%emt 0:01:34]} Nf6 {[%emt 0:00:23]} 9. dxc5 {[%emt 0:03:12]} Bxc5 {[%emt 0:01:23] White has an edge.} 10. Nb3 {[%emt 0:00:09]} Be7 {[%emt 0:00:45] 10...Bb6 is the fancy move.} 11. Re1 {[%emt 0:01:16]} O-O {[%emt 0:00:57]} 12. c3 {[%emt 0:01:25]} h6 {[%emt 0:05:05]} 13. Be3 {[%emt 0:07:28]} Re8 {[%emt 0:03:46]} 14. h3 {[%emt 0:09:51]} Bf5 {[%emt 0:06:27]} 15. Nbd4 {[%emt 0:08:55]} Bg6 {[%emt 0:02:43]} 16. Nh4 $146 {[%emt 0:06:41]} (16. Bf1 Bf8 17. Bd3 Ne4 18. Qc2 Rac8 19. Rad1 Bh5 20. Rc1 Qd7 21. Qb1 Bd6 22. c4 {½-½ Tiviakov,S (2611)-Zhukova,N (2333) Minsk Kupreichik Memorial op rapid 2019 (7)}) 16... Bh7 {[%emt 0:02:23]} 17. Nhf5 {[%emt 0:01:59]} Bf8 {[%emt 0:03:07]} 18. Bd3 {[%emt 0:03:33]} Ne4 {[%emt 0:08:21]} 19. Qg4 {[%emt 0:17:35] Nb5 is the strong threat.} Ne5 {[%emt 0:15:43][%csl LRd3,LRg4]} 20. Qf4 {[%emt 0:04:51]} (20. Nxh6+ $2 Kh8 21. Qf4 (21. Nb5 $2 Qe7 $19) 21... gxh6 $19) (20. Qe2 $11) 20... g5 {[%emt 0:04:29]} 21. Qh2 {[%emt 0:00:13]} Bxf5 $1 {[%emt 0:03:35]} 22. Nxf5 {[%emt 0:00:12]} Qd7 {[%emt 0:01:27]} 23. Bxe4 {[%emt 0:03:45]} dxe4 {[%emt 0:00:07]} 24. Ng3 {[%emt 0:00:55]} f5 {[%emt 0:10:02]} 25. Bd4 {[%emt 0:00:49][%cal Og3e4]} Bd6 $1 {[%emt 0:02:30]} (25... Nd3 26. h4 $15) 26. h4 {[%emt 0:00:45]} (26. Bxe5 $17 Bxe5 27. Qh1) 26... g4 $1 $19 {[%emt 0:02:15]} 27. Qh1 {[%emt 0:11:03]} Qf7 {[%emt 0:01:46]} 28. Bxe5 {[%emt 0:01:08]} Bxe5 {[%emt 0:00:26]} 29. Nf1 {[%emt 0:00:16]} h5 {[%emt 0:03:15]} 30. g3 {[%emt 0:00:43]} Rad8 {[%emt 0:01:35]} 31. Qg2 {[%emt 0:00:19]} Rd3 {[%emt 0:02:03]} 32. Re2 {[%emt 0:00:06]} Red8 {[%emt 0:01:19][%csl Od3] Strong Square Black (d3)} (32... Rf3 $19 33. a4 Rd8) 33. Ne3 $17 {[%emt 0:00:33]} Bc7 {[%emt 0:01:02]} 34. c4 {[%emt 0:01:45]} Be5 {[%emt 0:01:39]} 35. Rb1 {[%emt 0:03:00]} (35. Rae1 $17 {keeps fighting.}) 35... R8d4 {[%emt 0:02:08]} (35... Rd2 $19 36. Rbe1 Bxb2 (36... Rxb2 37. Rxb2 Bxb2 38. Qf1 $17)) 36. b3 {[%emt 0:01:21]} Rd2 $36 {[%emt 0:06:30][%mdl 2048] Black has strong initiative.} 37. Rbe1 {[%emt 0:02:10]} Rxe2 {[%emt 0:03:05]} 38. Rxe2 {[%emt 0:00:02]} f4 {[%emt 0:01:10] Black has a king side majority} 39. gxf4 {[%emt 0:00:12]} Qxf4 {[%emt 0:00:29] Black attacks} 40. Nf1 {[%emt 0:00:15] White is weak on the dark squares} Qf3 {[%emt 0:02:55]} 41. Re3 {[%emt 0:33:56] [#]} (41. Re1 $17) 41... Bf4 $1 $19 {[%emt 0:04:34]} 42. Re1 {[%emt 0:00:00]} Kf7 {[%emt 0:02:27]} 43. Nh2 {[%emt 0:00:00]} Qxg2+ {[%emt 0:02:39]} 44. Kxg2 {[%emt 0:00:00]} Bxh2 {[%emt 0:06:09]} ({Black should play} 44... e3 {and ...Rd2 would now be decisive} 45. Nf1 exf2 46. Kxf2 Rd3) 45. Kxh2 {[%emt 0:00:00][%mdl 4096] Endgame KR-KR} Kf6 {[%emt 0:00:41]} 46. Kg2 {[%emt 0:00:00]} Ke5 {[%emt 0:02:49]} 47. Re2 {[%emt 0:00:00] Wards off Rd2} Rd3 {[%emt 0:03:14]} 48. c5 {[%emt 0:00:00]} Rc3 {[%emt 0:05:26]} (48... a5 $17 {next ...Rc3 is good for Black.} 49. Rb2 Rd5) 49. b4 {[%emt 0:00:00]} Rc4 {[%emt 0:03:41]} 50. Rb2 {[%emt 0:00:00]} Kd5 {[%emt 0:02:31]} 51. Kg3 {[%emt 0:00:00]} Rc3+ {[%emt 0:00:41]} 52. Kf4 $2 {[%emt 0:00:00][%mdl 8192]} (52. Kg2 $1 $11) 52... Rf3+ {[%emt 0:00:38]} 53. Kg5 {[%emt 0:00:00] [#] This costs White the game.} g3 $1 {[%emt 0:00:25]} 54. fxg3 {[%emt 0:00:00]} Rxg3+ {[%emt 0:00:04]} 55. Kxh5 {[%emt 0:00:00]} e3 {[%emt 0:02:04] Prevents Rd2+} 56. Kh6 {[%emt 0:00:00]} Kc4 {[%emt 0:00:54]} 57. h5 {[%emt 0:00:00]} Kc3 {[%emt 0:00:38]} 58. Rh2 {[%emt 0:00:00]} (58. Rb3+ Kc2 59. b5) 58... Kd3 {[%emt 0:00:37] ( -> ...e2)} (58... Kxb4 59. Rc2 $17) 59. Kh7 {[%emt 0:00:00]} e2 {[%emt 0:00:29]} 60. Rh1 {[%emt 0:00:00]} Kd2 {[%emt 0:01:04]} 61. h6 {[%emt 0:00:00]} Rg4 {[%emt 0:00:44]} 62. b5 {[%emt 0:00:00]} Rg5 {[%emt 0:00:21]} 63. c6 {[%emt 0:02:31]} Rxb5 {[%emt 0:00:33]} (63... bxc6 $142 64. bxc6 e1=Q (64... e1=R $2 65. Rh2+ Kc3 66. Kh8 $19) 65. Rxe1 Kxe1) 64. Kg6 {[%emt 0:02:19]} Rb6 {[%emt 0:00:17]} (64... e1=B 65. h7 Rc5 66. cxb7 (66. h8=R Rxc6+ 67. Kf5 Rc5+ 68. Ke4 Rc7 $16) 66... Rc6+ 67. Kf5 Rc5+ 68. Ke4 $18) 65. h7 {[%emt 0:02:25]} Rxc6+ {[%emt 0:00:06]} (65... e1=R $2 66. Rxe1 (66. h8=Q Rxc6+ 67. Kf7 Rc7+ 68. Kf6 Rc6+ 69. Kg5 Rc5+ 70. Kg4 Rc4+ 71. Kf5 Rc5+ 72. Kg4 Rc4+ 73. Kf5 Rc5+ 74. Kf4 Rc4+ 75. Kg5 Rc5+ 76. Kg4 $11) 66... Rxc6+ 67. Kg5 Rc5+ 68. Kf6 Rc6+ 69. Re6 $18) 66. Kg7 {[%emt 0:00:11]} Rc7+ {[%emt 0:00:08]} (66... e1=R 67. Rh2+ (67. h8=R $2 {too greedy.} Rxh1 68. Rxh1 Kc2 $19) (67. h8=Q Rc7+ 68. Kg6 Rc6+ 69. Kf5 Rc5+ 70. Kg4 Rc4+ 71. Kg5 Rc5+ 72. Kg4 Rc4+ 73. Kg3 Re3+ 74. Kh2 Re2+ 75. Kg3 Re3+ 76. Kh2 Re2+ 77. Kg3 Re3+ $11) 67... Kd3 68. h8=Q $11 (68. h8=B $2 Rc2 $19)) 67. Kg6 {[%emt 0:00:05]} Rc8 {[%emt 0:00:14]} ({Stronger than} 67... e1=R 68. Rh2+ (68. h8=R Rxh1 69. Rxh1 Kd3 $17) (68. h8=Q Rc6+ 69. Kg5 Rc5+ 70. Kg6 Rc6+ 71. Kg5 Rc5+ 72. Kg4 Rc4+ 73. Kf5 Rc5+ 74. Kf6 Rc6+ 75. Kg5 $11) 68... Kd3 69. h8=Q $11 (69. h8=R Kd4 $17)) 68. Kg7 {[%emt 0:01:36]} e1=Q {[%emt 0:00:10]} 69. Rxe1 {[%emt 0:00:07]} Kxe1 {[%emt 0:00:05]} 70. h8=B {[%emt 0:00:08][%mdl 32768] Weighted Error Value: White=0.49/Black=0.13 (very precise)  Loss on time!?  Loses game:     	White=2     	---        Mistake:       	White=5     	Black=4      Inaccurate:     	White=4     	Black=4      OK:         	White=19    	Black=15     Best:        	White=3     	Black=1      Strong:       	---       	Black=4} 1-0